bitfinex/quotes_ETHUSD_20250929
["timestamp","ask_amount","ask_price","bid_price","bid_amount"]
[1759143682720,5.85627146,4124.1,4124.0,14.5]
[1759143683022,2.42511204,4123.6,4123.1,0.248]
[1759143683220,3.0,4123.5,4123.1,0.248]
[1759143683409,5.85646136,4123.5,4123.2,14.5]
[1759143683718,2.425231,4123.4,4123.2,14.5]
[1759143683919,2.856531,4123.4,4123.2,14.5]
[1759143684290,2.42524191,4123.3,4123.2,14.5]
[1759143684828,2.85649725,4123.4,4123.2,14.5]
[1759143686026,2.42524191,4123.3,4123.2,14.5]
[1759143686585,3.054,4123.3,4123.2,14.5]
[1759143686993,3.054,4123.3,4122.9,0.3688]
[1759143687290,5.47926265,4123.3,4123.0,0.248]
[1759143687514,5.47926265,4123.3,4123.1,14.5]
[1759143687910,3.054,4123.3,4123.1,14.5]
[1759143688120,3.054,4123.3,4123.2,0.248]
[1759143688341,3.054,4123.3,4123.2,0.6843]
[1759143688542,3.053,4123.4,4123.2,0.6843]
[1759143688944,6.053,4123.4,4123.3,0.248]
[1759143689131,6.053,4123.4,4123.3,14.748]
[1759143689330,3.0,4123.4,4123.3,14.748]
[1759143689509,0.1208,4123.6,4123.3,15.1843]
[1759143689707,0.1208,4123.6,4123.4,0.6843]
[1759143689908,0.1208,4123.6,4123.4,0.248]
[1759143690125,3.053,4123.7,4123.4,0.248]
[1759143690126,0.0002,4124.1,4123.5,0.6843]
[1759143690403,3.0,4124.0,4123.6,14.52425065]
[1759143690636,0.0002,4124.1,4123.8,2.42494038]
[1759143690945,3.0002,4124.1,4123.8,2.42494038]
[1759143691152,3.0002,4124.1,4123.9,0.6843]
[1759143691308,3.0002,4124.1,4123.9,15.1843]
[1759143691507,3.0002,4124.1,4124.0,0.248]
[1759143691708,0.0002,4124.1,4124.0,2.67283026]
[1759143691916,0.0002,4124.1,4124.0,3.10913026]
[1759143692124,0.0002,4124.1,4124.0,17.60913026]
[1759143692532,0.0002,4124.1,4124.0,19.61253731]
[1759143693038,0.0002,4124.1,4124.0,17.18770705]
[1759143693238,0.0002,4124.1,4124.0,19.61253731]
[1759143698859,0.0002,4124.1,4124.0,20.40453731]
[1759143699461,0.0002,4124.1,4124.0,23.40453731]
[1759143703082,0.001,4124.6,4124.5,10.98063374]
[1759143703394,0.001,4124.6,4124.5,15.37615824]
[1759143703556,0.001,4124.6,4124.5,15.61795824]
[1759143703761,0.001,4124.6,4124.5,30.57375824]
[1759143703980,0.0002,4124.6,4124.5,30.57375824]
[1759143704182,0.0002,4124.6,4124.5,30.69455824]
[1759143706147,0.0002,4124.6,4124.5,30.23875824]
[1759143706351,0.0002,4124.6,4124.5,21.4388608]
[1759143706551,0.0002,4124.6,4124.5,17.0453363]
[1759143706776,0.4295,4124.6,4124.5,20.0983363]
[1759143706993,0.4295,4124.6,4124.5,17.0453363]
[1759143707221,0.6622,4124.6,4124.5,20.0993363]
[1759143707921,0.4295,4124.6,4124.5,20.0993363]
[1759143708287,0.0002,4124.6,4124.5,20.0993363]
[1759143709981,0.0002,4124.6,4124.5,5.5993363]
[1759143710429,0.0002,4124.6,4124.5,20.0993363]
[1759143712009,0.0002,4124.6,4124.5,22.95271106]
[1759143713354,0.0002,4124.6,4124.5,25.95271106]
[1759143720011,0.0002,4124.6,4124.5,22.44291106]
[1759143720210,0.0002,4124.6,4124.5,25.25311106]
[1759143720428,0.0002,4124.6,4124.5,25.49491106]
[1759143721302,0.0002,4124.6,4124.5,22.44291106]
[1759143721503,0.4295,4124.6,4124.5,16.9245363]
[1759143721692,0.6622,4124.6,4124.5,19.9785363]
[1759143721895,0.0002,4124.6,4124.5,20.0993363]
[1759143722526,0.4295,4124.6,4124.5,20.0993363]
[1759143723304,0.6622,4124.6,4124.5,20.0993363]
[1759143723508,0.4295,4124.6,4124.5,20.0993363]
[1759143724224,0.4295,4124.6,4124.5,17.0453363]
[1759143724429,0.6622,4124.6,4124.5,17.6738]
[1759143724948,0.6622,4124.6,4124.5,14.5]
[1759143725233,1.02852,4124.6,4124.5,14.5]
[1759143725527,6.45299752,4124.6,4124.5,14.502]
[1759143726540,4.02852,4124.6,4124.5,14.502]
[1759143726865,1.02852,4124.6,4124.5,14.502]
[1759143727229,3.45299752,4124.6,4124.5,14.502]
[1759143727637,11.24815895,4124.6,4124.5,0.002]
[1759143728079,15.09815895,4124.6,4124.5,0.002]
[1759143728832,15.09735895,4124.6,4124.5,0.002]
[1759143730348,19.89252038,4124.6,4124.5,0.002]
[1759143731059,15.09735895,4124.6,4124.5,0.002]
[1759143731258,12.03935895,4124.6,4124.5,0.002]
[1759143731569,15.09735895,4124.6,4124.5,0.002]
[1759143733247,15.47773406,4124.6,4124.5,0.002]
[1759143739671,12.41973406,4124.6,4124.5,0.002]
[1759143739839,6.17117263,4124.6,4124.5,0.002]
[1759143740038,5.48047752,4124.6,4124.5,0.002]
[1759143740385,9.14417752,4124.6,4124.5,0.002]
[1759143740667,9.93617752,4124.6,4124.5,0.002]
[1759143743690,14.73133895,4124.6,4124.5,0.002]
[1759143744911,14.73233895,4124.6,4124.5,0.002]
[1759143745220,18.43138717,4124.6,4124.5,0.002]
[1759143747210,4.67277146,4124.1,4124.0,0.002]
[1759143747377,15.52393289,4124.1,4124.0,0.002]
[1759143747574,16.18763289,4124.1,4124.0,0.002]
[1759143747810,18.04886587,4124.1,4124.0,0.002]
[1759143748007,18.42928585,4124.1,4124.0,0.002]
[1759143749522,15.13858585,4124.1,4124.0,0.002]
[1759143749686,11.51342442,4124.1,4124.0,0.002]
[1759143749883,15.92816587,4124.1,4124.0,0.002]
[1759143750085,16.59186587,4124.1,4124.0,0.002]
[1759143752924,16.97227158,4124.1,4124.0,0.002]
[1759143753690,16.73677158,4124.1,4124.0,0.002]
[1759143753891,8.45761015,4124.1,4124.0,0.002]
[1759143754237,9.65117717,4124.1,4124.0,0.2327]
[1759143755322,9.65117717,4124.1,4124.0,0.002]
[1759143755526,10.08017717,4124.1,4124.0,0.002]
[1759143756039,14.4453386,4124.1,4124.0,0.002]
[1759143756189,16.1323412,4124.1,4124.0,0.002]
[1759143759125,11.33717977,4124.1,4124.0,0.002]
[1759143759330,3.0,4124.1,4124.0,0.6941]
[1759143759529,3.1208,4124.1,4124.0,0.6941]
[1759143760495,3.1208,4124.1,4124.0,5.48926143]
[1759143760694,3.1208,4124.1,4124.0,0.6941]
[1759143761135,3.1208,4124.1,4124.0,15.1941]
[1759143761731,3.1208,4124.1,4124.0,14.7508]
[1759143762034,3.1208,4124.1,4124.0,15.1941]
[1759143762742,9.39357146,4124.1,4124.0,0.002]
[1759143762918,10.01125146,4124.1,4124.0,0.002]
[1759143763447,10.68765146,4124.1,4124.0,0.002]
[1759143763862,10.44515146,4124.1,4124.0,0.002]
[1759143764163,11.068044,4124.1,4124.0,0.002]
[1759143767042,10.825544,4124.1,4124.0,0.002]
[1759143768661,12.403244,4124.1,4124.0,0.002]
[1759143768960,7.214844,4124.1,4124.0,0.002]
[1759143769177,7.47268,4124.1,4124.0,0.002]
[1759143769330,7.47268,4124.1,4124.0,0.2508]
[1759143769331,6.856,4124.1,4124.0,0.2508]
[1759143769530,0.792,4124.1,4124.0,0.6941]
[1759143769751,6.856,4124.1,4124.0,0.6941]
[1759143769952,6.064,4124.1,4124.0,0.6941]
[1759143770236,3.064,4124.1,4124.0,0.6941]
[1759143771144,10.26357146,4124.1,4124.0,0.002]
[1759143771657,11.71957146,4124.1,4124.0,0.002]
[1759143772367,12.10001255,4124.1,4124.0,0.002]
[1759143772670,12.11101255,4124.1,4124.0,0.002]
[1759143774967,11.86851255,4124.1,4124.0,0.002]
[1759143775472,11.43461255,4124.1,4124.0,0.002]
[1759143775668,9.97861255,4124.1,4124.0,0.002]
[1759143776172,4.55384109,4124.1,4124.0,0.002]
[1759143776375,6.97861255,4124.1,4124.0,0.002]
[1759143776539,9.97861255,4124.1,4124.0,0.002]
[1759143778895,9.97781255,4124.1,4124.0,0.002]
[1759143779878,4.47804109,4124.1,4124.0,0.002]
[1759143780104,9.97681255,4124.1,4124.0,0.2508]
[1759143780397,7.55204109,4124.1,4124.0,0.2508]
[1759143780876,6.45444109,4124.1,4124.0,0.6941]
[1759143781258,6.074,4124.1,4124.0,0.6941]
[1759143781774,3.0,4124.1,4124.0,0.6941]
[1759143781978,3.074,4124.1,4124.0,0.6941]
[1759143782778,0.001,4124.6,4124.0,0.6941]
[1759143783079,0.1218,4124.6,4124.1,0.71634771]
[1759143783285,3.0,4124.4,4124.2,0.6921]
[1759143783479,3.0,4124.4,4124.3,0.2488]
[1759143784981,3.0,4124.4,4124.0,0.002]
[1759143785182,0.792,4124.1,4124.0,0.002]
[1759143785477,6.867,4124.1,4124.0,0.002]
[1759143785678,7.3009,4124.1,4124.0,0.002]
[1759143786062,9.72567146,4124.1,4124.0,0.002]
[1759143786273,9.96817146,4124.1,4124.0,0.002]
[1759143786590,12.76224287,4124.1,4124.0,0.002]
[1759143789871,13.00534287,4124.1,4124.0,0.002]
[1759143790086,20.65043487,4124.1,4124.0,0.002]
[1759143790402,43.82811846,4124.1,4124.0,0.002]
[1759143791873,43.92542442,4124.1,4124.0,0.002]
[1759143792079,43.92542442,4124.1,4123.6,1e-08]
[1759143792274,10.23100666,4123.7,4123.6,1e-08]
[1759143792472,22.36360868,4123.7,4123.6,1e-08]
[1759143792689,20.04945168,4123.7,4123.6,1e-08]
[1759143792891,20.4299654,4123.7,4123.6,1e-08]
[1759143793095,20.2599334,4123.7,4123.6,1e-08]
[1759143793307,21.30512614,4123.7,4123.6,1e-08]
[1759143793806,20.38127014,4123.7,4123.6,1e-08]
[1759143794104,18.97405314,4123.7,4123.6,1e-08]
[1759143794694,18.66155312,4123.7,4123.6,1e-08]
[1759143794999,16.10355312,4123.7,4123.6,1e-08]
[1759143795500,16.20086784,4123.7,4123.6,1e-08]
[1759143796071,29.43457686,4123.7,4123.6,1e-08]
[1759143798102,22.58667986,4123.7,4123.6,1e-08]
[1759143799242,24.77168286,4123.7,4123.6,1e-08]
[1759143799704,23.35468486,4123.7,4123.6,1e-08]
[1759143799902,11.94559512,4123.7,4123.6,1e-08]
[1759143800113,12.40119512,4123.7,4123.6,1e-08]
[1759143800281,17.35242012,4123.7,4123.6,1e-08]
[1759143800710,17.66492014,4123.7,4123.6,1e-08]
[1759143801300,29.07486314,4123.7,4123.6,1e-08]
[1759143802504,24.46105914,4123.7,4123.6,1e-08]
[1759143803040,24.84159075,4123.7,4123.6,1e-08]
[1759143803544,28.03477975,4123.7,4123.6,1e-08]
[1759143803838,20.96219475,4123.7,4123.6,1e-08]
[1759143804051,15.41669075,4123.7,4123.6,1e-08]
[1759143804409,26.69330475,4123.7,4123.6,1e-08]
[1759143805547,26.76620475,4123.7,4123.6,1e-08]
[1759143805907,22.65797175,4123.7,4123.6,1e-08]
[1759143806329,13.32322675,4123.7,4123.6,1e-08]
[1759143806536,22.60864375,4123.7,4123.6,1e-08]
[1759143806715,15.30559073,4123.7,4123.6,1e-08]
[1759143807412,29.14009473,4123.7,4123.6,1e-08]
[1759143808021,15.01544173,4123.7,4123.6,1e-08]
[1759143808528,7.79512673,4123.7,4123.6,1e-08]
[1759143808742,7.79512673,4123.7,4123.6,0.24790001]
[1759143808743,4.00312673,4123.7,4123.6,0.24790001]
[1759143808917,6.08709512,4123.7,4123.6,0.24790001]
[1759143809112,6.87909512,4123.7,4123.6,0.24790001]
[1759143809351,6.08809512,4123.7,4123.6,0.67550001]
[1759143809542,9.88009512,4123.7,4123.6,0.67550001]
[1759143810254,11.11059767,4123.7,4123.6,0.67550001]
[1759143810548,8.11059767,4123.7,4123.6,0.67550001]
[1759143810853,9.88009512,4123.7,4123.6,0.67550001]
[1759143811362,6.88009512,4123.7,4123.6,0.67550001]
[1759143811864,9.88109512,4123.7,4123.6,0.67550001]
[1759143812157,10.2615521,4123.7,4123.6,0.67550001]
[1759143812756,10.2615521,4123.7,4123.6,1e-08]
[1759143812959,11.53020035,4123.7,4123.6,1e-08]
[1759143813858,11.53020035,4123.7,4123.6,0.24790001]
[1759143814459,11.53020035,4123.7,4123.6,0.67550001]
[1759143814633,11.53020035,4123.7,4123.6,0.24790001]
[1759143814944,11.53020035,4123.7,4123.6,0.67550001]
[1759143815349,6.69577836,4123.7,4123.6,0.67550001]
[1759143815549,6.69577836,4123.7,4123.6,1e-08]
[1759143815550,9.76677836,4123.7,4123.6,1e-08]
[1759143815955,11.22277836,4123.7,4123.6,1e-08]
[1759143816176,10.26290463,4123.7,4123.6,1e-08]
[1759143816932,16.32296365,4123.7,4123.6,1e-08]
[1759143817256,13.90919405,4123.7,4123.6,1e-08]
[1759143817960,14.36479405,4123.7,4123.6,1e-08]
[1759143818362,20.60503705,4123.7,4123.6,1e-08]
[1759143818860,30.72596205,4123.7,4123.6,1e-08]
[1759143820166,29.17580905,4123.7,4123.6,1e-08]
[1759143820337,22.68811605,4123.7,4123.6,1e-08]
[1759143820537,22.11941005,4123.7,4123.6,1e-08]
[1759143820869,20.63146505,4123.7,4123.6,1e-08]
[1759143821164,13.90819405,4123.7,4123.6,1e-08]
[1759143821333,17.71931005,4123.7,4123.6,1e-08]
[1759143821667,17.94761005,4123.7,4123.6,1e-08]
[1759143822364,14.34539405,4123.7,4123.6,1e-08]
[1759143822861,17.45701305,4123.7,4123.6,1e-08]
[1759143823173,17.68531305,4123.7,4123.6,1e-08]
[1759143823971,13.90819405,4123.7,4123.6,1e-08]
[1759143824271,16.43088705,4123.7,4123.6,1e-08]
[1759143824669,16.86808705,4123.7,4123.6,1e-08]
[1759143824871,17.09638705,4123.7,4123.6,1e-08]
[1759143825766,16.86808705,4123.7,4123.6,1e-08]
[1759143826082,9.06669403,4123.7,4123.6,0.23630001]
[1759143826285,11.75423705,4123.7,4123.6,0.23630001]
[1759143828555,11.75343705,4123.7,4123.6,0.23630001]
[1759143829088,11.75343705,4123.7,4123.6,1e-08]
[1759143829089,12.13391425,4123.7,4123.6,1e-08]
[1759143830077,12.13391425,4123.7,4123.6,0.23630001]
[1759143830695,12.13391425,4123.7,4123.6,1e-08]
[1759143830878,9.06591425,4123.7,4123.6,0.23630001]
[1759143831203,12.13291425,4123.7,4123.6,0.23630001]
[1759143831573,9.06591425,4123.7,4123.6,0.23630001]
[1759143832103,30.69828227,4123.7,4123.6,1e-08]
[1759143832969,30.31780507,4123.7,4123.6,1e-08]
[1759143834525,22.92411807,4123.7,4123.6,1e-08]
[1759143834806,22.69581807,4123.7,4123.6,1e-08]
[1759143836107,23.3046239,4123.7,4123.6,1e-08]
[1759143836406,28.8634072,4123.7,4123.6,1e-08]
[1759143837208,27.4912112,4123.7,4123.6,1e-08]
[1759143837413,25.3517962,4123.7,4123.6,1e-08]
[1759143837912,25.7889962,4123.7,4123.6,1e-08]
[1759143840421,26.0172962,4123.7,4123.6,1e-08]
[1759143842223,25.7889962,4123.7,4123.6,1e-08]
[1759143842398,25.3517962,4123.7,4123.6,1e-08]
[1759143843440,13.83272618,4123.7,4123.6,0.23630001]
[1759143843740,17.30522035,4123.7,4123.6,0.23630001]
[1759143844030,16.51322035,4123.7,4123.6,0.23630001]
[1759143844236,17.97222035,4123.7,4123.6,1e-08]
[1759143844534,18.76422035,4123.7,4123.6,1e-08]
[1759143844939,18.76422035,4123.7,4123.6,0.23630001]
[1759143845533,7.89343705,4123.7,4123.6,0.23630001]
[1759143845737,9.08064765,4123.7,4123.6,0.70940001]
[1759143846331,13.88268643,4123.7,4123.6,0.70940001]
[1759143846538,14.67468643,4123.7,4123.6,0.70940001]
[1759143847066,15.0551656,4123.7,4123.6,0.70940001]
[1759143848737,7.19112682,4123.7,4123.6,0.23630001]
[1759143848930,15.0551656,4123.7,4123.6,0.70940001]
[1759143852566,15.0551656,4123.7,4123.6,1e-08]
[1759143852737,16.8031752,4123.7,4123.6,1e-08]
[1759143853754,16.8023752,4123.7,4123.6,1e-08]
[1759143853959,23.85575722,4123.7,4123.6,1e-08]
[1759143854143,23.47527805,4123.7,4123.6,1e-08]
[1759143854625,22.50359405,4123.7,4123.6,1e-08]
[1759143854957,22.41031205,4123.7,4123.6,1e-08]
[1759143855748,18.40776205,4123.7,4123.6,1e-08]
[1759143855926,18.19339605,4123.7,4123.6,1e-08]
[1759143857050,18.57389384,4123.7,4123.6,1e-08]
[1759143857929,19.00749384,4123.7,4123.6,1e-08]
[1759143860565,18.57389384,4123.7,4123.6,1e-08]
[1759143862671,19.00749384,4123.7,4123.6,1e-08]
[1759143863582,18.57389384,4123.7,4123.6,1e-08]
[1759143864073,18.25839382,4123.7,4123.6,1e-08]
[1759143864264,18.25839382,4123.7,4123.6,0.24380001]
[1759143864660,16.79939382,4123.7,4123.6,0.24380001]
[1759143864861,16.79939382,4123.7,4123.6,1e-08]
[1759143865277,18.02449384,4123.7,4123.6,1e-08]
[1759143865578,17.54549384,4123.7,4123.6,1e-08]
[1759143866274,17.11189384,4123.7,4123.6,1e-08]
[1759143866687,17.54549384,4123.7,4123.6,1e-08]
[1759143868874,16.79939382,4123.7,4123.6,1e-08]
[1759143871886,16.79939382,4123.7,4123.6,0.24380001]
[1759143872181,16.79739382,4123.7,4123.6,1e-08]
[1759143873384,16.41689603,4123.7,4123.6,1e-08]
[1759143874353,16.72939605,4123.7,4123.6,1e-08]
[1759143874568,17.39889605,4123.7,4123.6,1e-08]
[1759143874879,17.77941255,4123.7,4123.6,1e-08]
[1759143875467,17.54351255,4123.7,4123.6,1e-08]
[1759143876088,17.54351255,4123.7,4123.5,0.002]
[1759143876089,8.10936549,4123.6,4123.5,0.002]
[1759143876271,15.82137829,4123.2,4123.1,0.002]
[1759143876473,15.53433951,4123.2,4123.1,0.002]
[1759143877177,16.36736366,4123.2,4123.1,0.002]
[1759143878687,16.36656366,4123.2,4123.1,0.002]
[1759143881064,21.53357831,4123.2,4123.1,0.002]
[1759143881260,18.47954913,4123.2,4123.1,0.002]
[1759143882399,18.47954913,4123.2,4122.7,0.2458]
[1759143882400,3.21753604,4122.8,4122.7,0.002]
[1759143882597,19.29639382,4122.8,4122.7,0.002]
[1759143882770,28.16527984,4122.8,4122.7,0.002]
[1759143883361,16.51787484,4122.8,4122.7,0.002]
[1759143883697,34.54257216,4122.8,4122.7,0.002]
[1759143884201,7.67659487,4122.7,4122.6,0.002]
[1759143884497,24.91306289,4122.7,4122.6,0.002]
[1759143884992,25.76239948,4122.7,4122.6,0.002]
[1759143885299,25.76239948,4122.7,4121.5,0.4478]
[1759143885300,0.792,4121.5,4120.5,0.2388]
[1759143885598,2.42667548,4120.9,4119.2,4.80203878]
[1759143885795,0.792,4120.7,4119.3,14.5]
[1759143886112,3.0,4120.5,4119.7,2.42735017]
[1759143886394,0.73015885,4120.8,4119.8,5.48863878]
[1759143886599,3.0,4120.6,4120.2,2.42706664]
[1759143886770,3.0,4120.6,4120.1,4.80203878]
[1759143886771,0.73015885,4120.8,4120.1,4.80203878]
[1759143886974,2.147,4120.7,4120.5,2.42687458]
[1759143887194,2.147,4120.7,4120.6,15.1866]
[1759143887556,2.147,4120.7,4120.6,17.61343104]
[1759143887759,2.147,4120.7,4120.6,17.19064318]
[1759143888030,2.147,4120.7,4120.6,19.61747422]
[1759143888302,2.147,4120.7,4120.6,17.19064318]
[1759143888801,2.147,4120.7,4120.6,19.61747422]
[1759143889206,3.79515885,4120.8,4120.7,2.42677215]
[1759143889364,3.79515885,4120.8,4120.7,4.63119679]
[1759143889566,3.79515885,4120.8,4120.7,5.31779679]
[1759143892086,3.79515885,4120.8,4120.7,3.11337215]
[1759143892414,3.79515885,4120.8,4120.7,17.61337215]
[1759143892583,0.73015885,4120.8,4120.7,17.61337215]
[1759143893713,3.0,4120.9,4120.8,2.42671325]
[1759143893887,3.73000071,4120.9,4120.8,2.45098038]
[1759143894218,3.73000071,4120.9,4120.8,5.55555951]
[1759143894417,3.0,4120.9,4120.8,5.53129238]
[1759143894584,0.792,4122.0,4121.1,2.42651174]
[1759143894782,3.792,4121.8,4121.2,0.6866]
[1759143895048,3.0,4121.6,4121.2,0.55640252]
[1759143895212,3.0,4121.4,4121.3,0.6866]
[1759143895421,3.062,4121.4,4121.3,0.6866]
[1759143895783,3.7919279,4121.4,4121.3,0.6866]
[1759143896113,3.7919279,4121.4,4121.3,15.1866]
[1759143897285,3.7919279,4121.4,4121.3,17.61301884]
[1759143897516,3.7299279,4121.4,4121.3,19.61697362]
[1759143897694,0.1208,4121.4,4121.3,19.61697362]
[1759143899220,3.1208,4121.8,4121.7,2.42618337]
[1759143899623,3.1208,4121.8,4121.7,0.6866]
[1759143900722,3.1208,4121.8,4121.3,19.37816785]
[1759143900923,0.1208,4121.8,4121.7,0.2388]
[1759143901129,3.1818,4121.8,4121.7,0.2388]
[1759143901527,3.1818,4121.8,4121.3,14.5]
[1759143901733,3.0,4121.7,4121.3,14.7388]
[1759143901927,3.0,4121.5,4121.3,14.7388]
[1759143902098,3.0,4121.5,4121.4,0.2388]
[1759143903635,0.12,4121.4,4121.3,14.5]
[1759143903926,3.182,4121.4,4121.3,14.7388]
[1759143905518,6.182,4121.4,4121.3,14.5]
[1759143906636,6.182,4121.4,4120.7,2.87456047]
[1759143906637,3.0,4121.3,4120.9,0.2388]
[1759143906932,0.1208,4120.7,4120.6,0.002]
[1759143907504,3.1208,4120.7,4120.6,0.2408]
[1759143907698,3.1208,4120.7,4120.6,0.6886]
[1759143908201,3.1208,4120.7,4120.6,3.11543104]
[1759143909426,3.0,4121.1,4120.6,6.24897305]
[1759143909634,3.0,4121.1,4120.7,5.05086938]
[1759143909820,0.72991902,4121.3,4120.7,5.05086938]
[1759143909821,0.72991902,4121.3,4121.2,2.42647772]
[1759143910137,3.061,4121.6,4121.4,2.42634632]
[1759143910138,3.0,4121.5,4121.4,2.42634632]
[1759143910315,3.0,4121.5,4121.4,16.92634632]
[1759143910516,3.0,4121.5,4121.4,19.57962755]
[1759143911740,3.0,4121.5,4121.4,16.67848123]
[1759143911911,3.0,4121.5,4121.4,14.7432]
[1759143912112,3.0,4121.5,4121.4,14.5]
[1759143912731,5.42630255,4121.5,4120.6,0.002]
[1759143912945,5.42630255,4121.5,4120.6,2.42882907]
[1759143912946,3.0,4121.3,4120.6,2.42882907]
[1759143913241,3.0,4121.1,4120.7,14.5]
[1759143913436,3.062,4121.0,4120.8,0.2313]
[1759143913844,2.80692171,4121.6,4120.9,0.2313]
[1759143913845,0.3806355,4121.6,4120.9,0.2313]
[1759143914045,3.0,4121.4,4120.9,3.12974706]
[1759143914237,3.0,4121.2,4120.9,2.42664706]
[1759143914553,3.0,4121.2,4120.8,4.14271761]
[1759143914716,3.0,4121.2,4120.9,0.25556654]
[1759143914917,3.0,4121.2,4121.0,0.2313]
[1759143915118,0.8209355,4121.6,4121.1,0.2313]
[1759143915320,3.0,4121.4,4121.1,0.2313]
[1759143915648,3.0,4121.2,4121.1,0.2313]
[1759143916150,3.0,4121.2,4120.9,2.4266244]
[1759143916318,3.062,4121.1,4120.9,2.6579244]
[1759143916515,6.062,4121.1,4121.0,0.2313]
[1759143917532,6.062,4121.1,4120.7,14.7313]
[1759143917727,6.062,4121.1,4120.7,14.5]
[1759143918052,6.062,4121.1,4120.9,2.42664352]
[1759143918419,6.062,4121.1,4120.9,2.65794352]
[1759143918741,6.062,4121.1,4121.0,0.2313]
[1759143919753,6.1828,4121.1,4121.0,0.2313]
[1759143920154,6.1828,4121.1,4121.0,2.65789548]
[1759143920454,6.1828,4121.1,4121.0,0.2313]
[1759143921574,6.1828,4121.1,4121.0,14.5]
[1759143922877,6.6231,4121.1,4121.0,14.5]
[1759143923034,3.0,4121.0,4120.6,0.002]
[1759143923234,0.1208,4120.8,4120.6,0.002]
[1759143923537,0.1208,4120.8,4120.6,14.502]
[1759143924260,0.1208,4120.8,4120.7,2.42677215]
[1759143924468,0.1208,4120.8,4120.7,2.65807215]
[1759143925336,0.1208,4120.8,4120.7,4.61676797]
[1759143925530,0.1208,4120.8,4120.7,0.2313]
[1759143926270,0.1208,4120.8,4120.7,2.65807215]
[1759143926849,0.1208,4120.8,4120.7,0.2313]
[1759143927044,0.1208,4120.8,4120.7,14.7313]
[1759143927384,0.1208,4120.8,4120.7,17.15807215]
[1759143927847,0.1208,4120.8,4120.7,14.7313]
[1759143928054,0.1208,4120.8,4120.7,14.5]
[1759143928577,0.12,4120.8,4120.7,16.92677215]
[1759143928753,0.12,4120.8,4120.7,17.15807215]
[1759143930274,0.12,4120.8,4120.7,19.6357481]
[1759143930768,0.12,4120.8,4120.7,19.1639481]
[1759143930973,0.12,4120.8,4120.7,17.62987215]
[1759143931885,0.12,4120.8,4120.7,3.12987215]
[1759143932450,0.12,4120.8,4120.7,17.62987215]
[1759143932764,0.12,4120.8,4120.7,17.15807215]
[1759143932959,3.0,4121.0,4120.9,2.42665437]
[1759143933156,3.1208,4121.0,4120.9,2.42665437]
[1759143933355,3.1208,4121.0,4120.9,4.66380702]
[1759143933968,3.1208,4121.0,4120.9,2.00585265]
[1759143934285,3.1208,4121.0,4120.9,2.42665437]
[1759143934471,3.1208,4121.0,4120.7,14.5]
[1759143934676,3.1208,4121.0,4120.8,0.2313]
[1759143935287,3.1208,4121.0,4120.9,2.42665437]
[1759143935687,3.1208,4121.0,4120.9,2.65795437]
[1759143938119,0.1208,4121.0,4120.9,3.13188693]
[1759143938419,0.1208,4121.0,4120.9,17.63188693]
[1759143939321,0.1208,4121.0,4120.9,17.15795437]
[1759143940798,0.1208,4121.0,4120.9,16.92665437]
[1759143941834,0.1208,4121.0,4120.9,17.16935437]
[1759143942300,0.1208,4121.0,4120.9,14.7427]
[1759143942501,0.1208,4121.0,4120.9,17.16935437]
[1759143943687,3.6248,4121.0,4120.9,14.5]
[1759143943899,6.6248,4121.0,4120.9,14.5]
[1759143944232,7.59338473,4121.0,4120.9,14.5]
[1759143946003,7.35478473,4121.0,4120.9,14.5]
[1759143949620,7.35478473,4121.0,4120.9,16.92665437]
[1759143950013,7.35478473,4121.0,4120.9,14.5]
[1759143950399,6.90378473,4121.0,4120.9,14.5]
[1759143950600,7.35478473,4121.0,4120.9,14.5]
[1759143950797,7.59338473,4121.0,4120.9,14.5]
[1759143952533,3.90378473,4121.0,4120.9,16.92665437]
[1759143952855,0.1208,4121.0,4120.9,14.5]
[1759143953417,0.12,4121.0,4120.9,14.5]
[1759143954154,0.121,4121.0,4120.9,14.5]
[1759143954517,0.8509794,4121.0,4120.9,14.5]
[1759143954717,0.8509794,4121.0,4120.9,17.16935437]
[1759143954937,0.8509794,4121.0,4120.9,16.92665437]
[1759143955352,0.8509794,4121.0,4120.9,17.16935437]
[1759143959057,0.8509794,4121.0,4120.9,14.7427]
[1759143959256,0.8509794,4121.0,4120.9,17.16935437]
[1759143959455,0.8509794,4121.0,4120.9,16.92665437]
[1759143960054,0.8509794,4121.0,4120.9,17.16935437]
[1759143960434,0.8509794,4121.0,4120.9,16.92665437]
[1759143960753,0.001,4121.0,4120.9,19.12936628]
[1759143961552,0.001,4121.0,4120.9,18.88666628]
[1759143962135,0.001,4121.0,4120.9,19.12936628]
[1759143963054,0.001,4121.0,4120.9,16.46001191]
[1759143963245,0.001,4121.0,4120.9,14.5]
[1759143963747,0.001,4121.0,4120.9,16.92665437]
[1759143964654,0.001,4121.0,4120.9,17.16935437]
[1759143967669,0.001,4121.0,4120.9,17.64085437]
[1759143968733,0.001,4121.0,4120.9,20.69385437]
[1759143968949,0.001,4121.0,4120.9,23.21201662]
[1759143970770,0.001,4121.0,4120.9,22.74051662]
[1759143970941,0.001,4121.0,4120.9,23.30431662]
[1759143978461,0.0002,4121.0,4120.9,23.30431662]
[1759143980360,0.0002,4121.0,4120.9,23.29281662]
[1759143988492,0.0002,4121.0,4120.9,19.56561662]
[1759143988680,0.0002,4121.0,4120.9,27.42074574]
[1759143989094,0.4709,4121.0,4120.9,16.92665437]
[1759143989303,0.7203,4121.0,4120.9,16.92665437]
[1759143994370,0.4709,4121.0,4120.9,16.92665437]
[1759143994708,0.7203,4121.0,4120.9,19.97765437]
[1759143995904,0.4709,4121.0,4120.9,19.97765437]
[1759143997279,0.0002,4121.0,4120.9,19.97765437]
[1759143997481,0.4709,4121.0,4120.9,19.97765437]
[1759143998095,0.7203,4121.0,4120.9,19.97765437]